Body,Body Name,Date,TransNo,Amount � (Excl VAT),Supplier name,Description,Expense Area,Expense Type,Expense Code,
http://opendatacommunities.org/id/london-borough-council/sutton,London Borough of Sutton,08/02/2018,1250972,71.58 , AMAZON UK MARKETPLACE,TOYS & EQUIPMENT,Peoples Services Directorate,Education Equipment,F009,
http://opendatacommunities.org/id/london-borough-council/sutton,London Borough of Sutton,08/02/2018,1250972,28.37 , AMAZON EU AMAZON.CO.UK,TOYS & EQUIPMENT,Peoples Services Directorate,Education Equipment,F009,
http://opendatacommunities.org/id/london-borough-council/sutton,London Borough of Sutton,08/02/2018,1250972,30.69 , AMAZON EU AMAZON.CO.UK,TOYS & EQUIPMENT,Peoples Services Directorate,Education Equipment,F009,
http://opendatacommunities.org/id/london-borough-council/sutton,London Borough of Sutton,02/02/2018,1250972,54.41 , BAKER ROSS LTD,TOYS & EQUIPMENR,Peoples Services Directorate,Education Equipment,F009,
http://opendatacommunities.org/id/london-borough-council/sutton,London Borough of Sutton,02/02/2018,1250972,148.58 , WWW.MUDDYFACES.CO.UK,TOYS & EQUIPMENT,Peoples Services Directorate,Education Equipment,F009,
http://opendatacommunities.org/id/london-borough-council/sutton,London Borough of Sutton,09/02/2018,1250972,9.69 , AMAZON UK MARKETPLACE,TOYS & EQUIPMENT,Peoples Services Directorate,Other Equipment - Purchase,F015,
http://opendatacommunities.org/id/london-borough-council/sutton,London Borough of Sutton,13/02/2018,1250972,157.00 , WWW.MORLEYS.CO.UK,TOYS,Peoples Services Directorate,Materials - General,F100,
http://opendatacommunities.org/id/london-borough-council/sutton,London Borough of Sutton,19/02/2018,1250972,80.25 , SAINSBURYS TO YOU 0052,GROCERIES,Peoples Services Directorate,Provisions - General,F150,
http://opendatacommunities.org/id/london-borough-council/sutton,London Borough of Sutton,08/02/2018,1250972,101.24 , SAINSBURYS TO YOU 0052,GROCERIES,Peoples Services Directorate,Refreshments,F155,
http://opendatacommunities.org/id/london-borough-council/sutton,London Borough of Sutton,22/02/2018,1250972,8.33 ," BOOTS,CROYDON",RA AND SFA CONGRAULTATIONS PRESENT,Peoples Services Directorate,Personal Requisites,F106,
http://opendatacommunities.org/id/london-borough-council/sutton,London Borough of Sutton,22/02/2018,1250972,8.33 , MOTHERCARE,RA AND SFA PRESENT FOR BABY,Peoples Services Directorate,Personal Requisites,F106,
http://opendatacommunities.org/id/london-borough-council/sutton,London Borough of Sutton,26/01/2018,1250972,12.00 , LB CROYDON,BIRTH CERTIFICATE,Peoples Services Directorate,Personal Requisites,F106,
http://opendatacommunities.org/id/london-borough-council/sutton,London Borough of Sutton,23/02/2018,1250972,150.00 , WWW.CSKILLS.ORG,LW TRAINING,Peoples Services Directorate,LAC - Education,F269,
http://opendatacommunities.org/id/london-borough-council/sutton,London Borough of Sutton,16/02/2018,1250972,(33.32), ARGOS RETAIL GROUP,CORPORATE PARENTING - SETTING UP COST,Peoples Services Directorate,Set Up Costs - Children Leaving Care,H336,
http://opendatacommunities.org/id/london-borough-council/sutton,London Borough of Sutton,09/02/2018,1250972,33.32 , ARGOS RETAIL GROUP,LEAVING CARE CHILD SETTING UP - HOOVER,Peoples Services Directorate,Set Up Costs - Children Leaving Care,H336,
http://opendatacommunities.org/id/london-borough-council/sutton,London Borough of Sutton,22/02/2018,1250972,125.00 , BRITISH HEART FOUNDATI,LM SETTING UP,Peoples Services Directorate,Set Up Costs - Children Leaving Care,H336,
http://opendatacommunities.org/id/london-borough-council/sutton,London Borough of Sutton,26/01/2018,1250972,618.33 , SUTTON APPLIANCES,LEAVING CARE PURCHASE OF APPLIANCES,Peoples Services Directorate,Set Up Costs - Children Leaving Care,H336,
http://opendatacommunities.org/id/london-borough-council/sutton,London Borough of Sutton,14/02/2018,1250972,147.00 , TVLICENSING.CO.UK,COST OF TV LICENSE.,Peoples Services Directorate,Set Up Costs - Children Leaving Care,H336,
http://opendatacommunities.org/id/london-borough-council/sutton,London Borough of Sutton,02/02/2018,1250972,500.00 , OAKLEY HAIR ACDMY,CB PAYING FOR COURSE,Peoples Services Directorate,Education Allowance,H321,
http://opendatacommunities.org/id/london-borough-council/sutton,London Borough of Sutton,09/02/2018,1250972,6.57 , MCDONALDS,SS ACTIVITY WHILST COMPLETING SETTING UP,Peoples Services Directorate,Personal Requisites,F106,
http://opendatacommunities.org/id/london-borough-council/sutton,London Borough of Sutton,22/02/2018,1250972,86.62 , ARGOS LTD,MA SETTING UP ARGOS,Peoples Services Directorate,Set Up Costs - Children Leaving Care,H336,
http://opendatacommunities.org/id/london-borough-council/sutton,London Borough of Sutton,09/02/2018,1250972,120.89 , DUNELM LTD,SS SETTING UP,Peoples Services Directorate,Set Up Costs - Children Leaving Care,H336,
http://opendatacommunities.org/id/london-borough-council/sutton,London Borough of Sutton,01/02/2018,1250972,182.82 , ARGOS LTD,SS SETTING UP,Peoples Services Directorate,Set Up Costs - Children Leaving Care,H336,
http://opendatacommunities.org/id/london-borough-council/sutton,London Borough of Sutton,01/02/2018,1250972,78.33 , BRITISH HEART FOUNDATI,SPLIT - 17.47%,Peoples Services Directorate,Set Up Costs - Children Leaving Care,H336,
http://opendatacommunities.org/id/london-borough-council/sutton,London Borough of Sutton,01/02/2018,1250972,444.00 , BRITISH HEART FOUNDATI,SPLIT -82.53%,Peoples Services Directorate,Set Up Costs - Children Leaving Care,H336,
http://opendatacommunities.org/id/london-borough-council/sutton,London Borough of Sutton,28/01/2018,1250972,20.00 , OYSTER AUTOTOPUP,OYSTER TOP UP FOR RAS TEAM,Peoples Services Directorate,Travelling and Subsistence Allowances,A530,
http://opendatacommunities.org/id/london-borough-council/sutton,London Borough of Sutton,21/02/2018,1250972,20.00 , OYSTER AUTOTOPUP,OYSTER TOP UP,Peoples Services Directorate,Travelling and Subsistence Allowances,A530,
http://opendatacommunities.org/id/london-borough-council/sutton,London Borough of Sutton,26/01/2018,1250972,20.00 , OYSTER AUTOTOPUP,OYSTER TOP UP,Peoples Services Directorate,Travelling and Subsistence Allowances,A530,
http://opendatacommunities.org/id/london-borough-council/sutton,London Borough of Sutton,24/02/2018,1250972,107.50 , HOTEL IBIS YORK CENTRE,CLIENT FOR RAS TEAM EMERGANCY ACCOMODATION,Peoples Services Directorate,Accommodation - Supported Living,H201,
http://opendatacommunities.org/id/london-borough-council/sutton,London Borough of Sutton,15/02/2018,1250972,381.12 , TRAVELODGE,TRAVELODGE ACCOMMODATION - EMERGENCY ACCOMMODATION,Peoples Services Directorate,Payments Under the Child Care Act 1980,H210,
http://opendatacommunities.org/id/london-borough-council/sutton,London Borough of Sutton,20/02/2018,1250972,357.37 , TRAVELODGE,KINGSTON TRAVEL LODGE,Peoples Services Directorate,Payments Under the Child Care Act 1980,H210,
http://opendatacommunities.org/id/london-borough-council/sutton,London Borough of Sutton,08/02/2018,1250972,42.83 , NATIONAL EXPRESS LIMIT,NATIONAL COACH EXPRESS -  REDACTED - PERSONAL DATA,Peoples Services Directorate,Travelling and Subsistence Allowances,A530,
http://opendatacommunities.org/id/london-borough-council/sutton,London Borough of Sutton,24/02/2018,1250972,20.00 , OYSTER AUTOTOPUP,OYSTER AUTO TOP UP,Peoples Services Directorate,Travelling and Subsistence Allowances,A530,
http://opendatacommunities.org/id/london-borough-council/sutton,London Borough of Sutton,24/02/2018,1250972,20.00 , OYSTER BUS AUTOTOP,OYSTER AUTO TOP UP,Peoples Services Directorate,Travelling and Subsistence Allowances,A530,
http://opendatacommunities.org/id/london-borough-council/sutton,London Borough of Sutton,21/02/2018,1250972,20.00 , OYSTER AUTOTOPUP,OYSTER AUTO TOP UP,Peoples Services Directorate,Travelling and Subsistence Allowances,A530,
http://opendatacommunities.org/id/london-borough-council/sutton,London Borough of Sutton,16/02/2018,1250972,14.70 , WWW.WIGHTLINK.CO.UK,TRAVEL FOR SW FOR LAC VISIT,Peoples Services Directorate,Travelling and Subsistence Allowances,A530,
http://opendatacommunities.org/id/london-borough-council/sutton,London Borough of Sutton,04/02/2018,1250972,20.00 , OYSTER AUTOTOPUP,TOP UP OYSTER FOR LAC TEAM,Peoples Services Directorate,Travelling and Subsistence Allowances,A530,
http://opendatacommunities.org/id/london-borough-council/sutton,London Borough of Sutton,04/02/2018,1250972,20.00 , OYSTER AUTOTOPUP,TOP UP OYSTER FOR LAC TEAM,Peoples Services Directorate,Travelling and Subsistence Allowances,A530,
http://opendatacommunities.org/id/london-borough-council/sutton,London Borough of Sutton,04/02/2018,1250972,20.00 , OYSTER AUTOTOPUP,TOP UP OYSTER FOR LAC TEAM,Peoples Services Directorate,Travelling and Subsistence Allowances,A530,
http://opendatacommunities.org/id/london-borough-council/sutton,London Borough of Sutton,01/02/2018,1250972,20.00 , OYSTER AUTOTOPUP,TOP UP OYSTER FOR LAC TEAM,Peoples Services Directorate,Travelling and Subsistence Allowances,A530,
http://opendatacommunities.org/id/london-borough-council/sutton,London Borough of Sutton,01/02/2018,1250972,20.00 , OYSTER BUS AUTOTOP,OYSTER TOP UP FOR LAC,Peoples Services Directorate,Travelling and Subsistence Allowances,A530,
http://opendatacommunities.org/id/london-borough-council/sutton,London Borough of Sutton,31/01/2018,1250972,20.00 , OYSTER AUTOTOPUP,TOP UP OYSTER FOR LAC TEAM,Peoples Services Directorate,Travelling and Subsistence Allowances,A530,
http://opendatacommunities.org/id/london-borough-council/sutton,London Borough of Sutton,28/01/2018,1250972,20.00 , OYSTER AUTOTOPUP,OYSTER TOP UP FOR LAC TEAM,Peoples Services Directorate,Travelling and Subsistence Allowances,A530,
http://opendatacommunities.org/id/london-borough-council/sutton,London Borough of Sutton,26/01/2018,1250972,20.00 , OYSTER BUS AUTOTOP,OYSTER CARD TOP UP FOR LAC,Peoples Services Directorate,Travelling and Subsistence Allowances,A530,
http://opendatacommunities.org/id/london-borough-council/sutton,London Borough of Sutton,24/02/2018,1250972,20.00 , OYSTER BUS AUTOTOP,OYSTER TOP UP,Peoples Services Directorate,Travelling and Subsistence Allowances,A530,
http://opendatacommunities.org/id/london-borough-council/sutton,London Borough of Sutton,16/02/2018,1250972,12.10 , WWW.WIGHTLINK.CO.UK,WIGHTLINK FERRIES JOURNEY - LAC,Peoples Services Directorate,Travelling and Subsistence Allowances,A530,
http://opendatacommunities.org/id/london-borough-council/sutton,London Borough of Sutton,03/02/2018,1250972,20.00 , OYSTER BUS AUTOTOP,OYSTER TOP UP,Peoples Services Directorate,Travelling and Subsistence Allowances,A530,
http://opendatacommunities.org/id/london-borough-council/sutton,London Borough of Sutton,20/02/2018,1250972,30.00 , LBSUTTON,BIRTH CERT - HAMILTON,Peoples Services Directorate,Personal Requisites,F106,
http://opendatacommunities.org/id/london-borough-council/sutton,London Borough of Sutton,19/02/2018,1250972,13.00 , LBHACKNEY PYMT,BIRTH CERTIFICATE - REDACTED - PERSONAL DATA,Peoples Services Directorate,Personal Requisites,F106,
http://opendatacommunities.org/id/london-borough-council/sutton,London Borough of Sutton,05/02/2018,1250972,51.52 , WWW.HOBBLEDOWN.COM,CONTACT FOR LOOKED AFTER CHILD,Peoples Services Directorate,Personal Requisites,F106,
http://opendatacommunities.org/id/london-borough-council/sutton,London Borough of Sutton,23/02/2018,1250972,26.95 , EMPIRECINEMAS.CO.U,LAC CHILD FAMILY VISIT,Peoples Services Directorate,Personal Requisites,F106,
http://opendatacommunities.org/id/london-borough-council/sutton,London Borough of Sutton,20/02/2018,1250972,29.25 , POST OFFICE COUNTER,LAC PASSPORT APPLICATION,Peoples Services Directorate,Personal Requisites,F106,
http://opendatacommunities.org/id/london-borough-council/sutton,London Borough of Sutton,16/02/2018,1250972,(174.00), WWW.WESTMINSTER-BRIEFI,EVEN T BOOKED FOR MICHEAL TAYLOR CONFERENCE,Peoples Services Directorate,Personal Requisites,F106,
http://opendatacommunities.org/id/london-borough-council/sutton,London Borough of Sutton,02/02/2018,1250972,(9.00), LBSUTTON,ACCOUNT REFUNDED UNKNOWN TO SOCIAL CARE SUPPORT TEAM,Peoples Services Directorate,Personal Requisites,F106,
http://opendatacommunities.org/id/london-borough-council/sutton,London Borough of Sutton,01/02/2018,1250972,147.75 , POST OFFICE COUNTER,LAC PASSPORT APPS,Peoples Services Directorate,Personal Requisites,F106,
http://opendatacommunities.org/id/london-borough-council/sutton,London Borough of Sutton,26/01/2018,1250972,91.67 , FLEXISTAY LTD,REDACTED - PERSONAL DATA,Peoples Services Directorate,Accommodation - Bed and Breakfast,H202,
http://opendatacommunities.org/id/london-borough-council/sutton,London Borough of Sutton,15/02/2018,1250972,133.90 , TRAINLINE.COM LTD,REDACTED - PERSONAL DATA,Peoples Services Directorate,Payments Under the Child Care Act 1980,H210,
http://opendatacommunities.org/id/london-borough-council/sutton,London Borough of Sutton,09/02/2018,1250972,73.00 , WWW.OXYGENFREEJUMP,CORPORATE PARENTING - CONTACT,Peoples Services Directorate,Payments Under the Child Care Act 1980,H210,
http://opendatacommunities.org/id/london-borough-council/sutton,London Borough of Sutton,09/02/2018,1250972,29.83 , ALL STAR LEISURE STRAT,CORPORATE PARENTING - CONTACT,Peoples Services Directorate,Payments Under the Child Care Act 1980,H210,
http://opendatacommunities.org/id/london-borough-council/sutton,London Borough of Sutton,13/02/2018,1250972,30.58 , WWW.BOOKING.GLL.ORG,STREATHAM ICE RINK - 2 ADULT 2 CHILD - 13.02.2018,Peoples Services Directorate,Payments Under the Child Care Act 1980,H210,
http://opendatacommunities.org/id/london-borough-council/sutton,London Borough of Sutton,07/02/2018,1250972,80.00 , SWAN STAFF RECRUITMENT,ROOM BOOKING LAMBETH SWAN FAMILY CENTRE - 96.00.PDF A532 0312 9999,Peoples Services Directorate,Hotel Accomodation,A512,
http://opendatacommunities.org/id/london-borough-council/sutton,London Borough of Sutton,25/02/2018,1250972,20.00 , OYSTER AUTOTOPUP,OYSTER TOP UP,Peoples Services Directorate,Travelling and Subsistence Allowances,A530,
http://opendatacommunities.org/id/london-borough-council/sutton,London Borough of Sutton,16/02/2018,1250972,20.00 , OYSTER BUS AUTOTOP,TOP UP FOR COURT TEAM,Peoples Services Directorate,Travelling and Subsistence Allowances,A530,
http://opendatacommunities.org/id/london-borough-council/sutton,London Borough of Sutton,15/02/2018,1250972,20.00 , OYSTER AUTOTOPUP,TOP UP FOR COURT TEAM,Peoples Services Directorate,Travelling and Subsistence Allowances,A530,
http://opendatacommunities.org/id/london-borough-council/sutton,London Borough of Sutton,15/02/2018,1250972,20.00 , OYSTER BUS AUTOTOP,TOP UP FOR COURT TEAM,Peoples Services Directorate,Travelling and Subsistence Allowances,A530,
http://opendatacommunities.org/id/london-borough-council/sutton,London Borough of Sutton,14/02/2018,1250972,38.60 , WWW.TENPIN.CO.UK,TOP UP FOR COURT TEAM,Peoples Services Directorate,Travelling and Subsistence Allowances,A530,
http://opendatacommunities.org/id/london-borough-council/sutton,London Borough of Sutton,08/02/2018,1250972,20.00 , OYSTER AUTOTOPUP,TOP UP OYSTER FOR COURT TEAM,Peoples Services Directorate,Travelling and Subsistence Allowances,A530,
http://opendatacommunities.org/id/london-borough-council/sutton,London Borough of Sutton,15/02/2018,1250972,29.00 , NATIONAL EXPRESS LIMIT,TRAIN TICKET,Peoples Services Directorate,Travelling and Subsistence Allowances,A530,
http://opendatacommunities.org/id/london-borough-council/sutton,London Borough of Sutton,15/02/2018,1250972,27.00 , NATIONAL EXPRESS LIMIT,TRAIN TICKET,Peoples Services Directorate,Travelling and Subsistence Allowances,A530,
http://opendatacommunities.org/id/london-borough-council/sutton,London Borough of Sutton,28/01/2018,1250972,20.00 , OYSTER AUTOTOPUP,OYSTER TOP UP,Peoples Services Directorate,Travelling and Subsistence Allowances,A530,
http://opendatacommunities.org/id/london-borough-council/sutton,London Borough of Sutton,09/02/2018,1250972,149.99 , DIRECT2MUM,DIRECT2MUM - BED,Peoples Services Directorate,Personal Requisites,F106,
http://opendatacommunities.org/id/london-borough-council/sutton,London Borough of Sutton,31/01/2018,1250972,30.00 , LBSUTTON,BIRTH CERTS BOUGHT FOR FSCP TEAM,Peoples Services Directorate,Personal Requisites,F106,
http://opendatacommunities.org/id/london-borough-council/sutton,London Borough of Sutton,07/02/2018,1250972,96.67 , HOTEL IBIS YORK CENTRE,BOOKING.COM,Peoples Services Directorate,C.C.A Travel & Subsistance,H212,
http://opendatacommunities.org/id/london-borough-council/sutton,London Borough of Sutton,26/01/2018,1250972,112.50 , QUEENS HOTEL YORK,135.00 - H212 0312 9999 - THE QUEENS HOTEL -.PD,Peoples Services Directorate,C.C.A Travel & Subsistance,H212,
http://opendatacommunities.org/id/london-borough-council/sutton,London Borough of Sutton,09/02/2018,1250972,40.50 , NATIONAL EXPRESS LIMIT,NATIONAL COACH EXPRESS,Peoples Services Directorate,C.C.A Travel & Subsistance,H212,
http://opendatacommunities.org/id/london-borough-council/sutton,London Borough of Sutton,23/02/2018,1250972,48.60 , NATIONAL EXPRESS LIMIT,TICKET BOUGHT FOR FSCP CLIENT,Peoples Services Directorate,C.C.A Travel & Subsistance,H212,
http://opendatacommunities.org/id/london-borough-council/sutton,London Borough of Sutton,22/02/2018,1250972,48.60 , NATIONAL EXPRESS LIMIT,TICKET PURCHASED FOR FSCP CLIENT,Peoples Services Directorate,C.C.A Travel & Subsistance,H212,
http://opendatacommunities.org/id/london-borough-council/sutton,London Borough of Sutton,20/02/2018,1250972,120.00 , WM MORRISONS,MORRISONS VOUCHERS PURCHASED,Peoples Services Directorate,C.C.A Food & Clothing,H213,
http://opendatacommunities.org/id/london-borough-council/sutton,London Borough of Sutton,20/02/2018,1250972,120.00 , WM MORRISONS,120 MORRISONS VOUCHERS FOR SUBSISTANCE,Peoples Services Directorate,C.C.A Food & Clothing,H213,
http://opendatacommunities.org/id/london-borough-council/sutton,London Borough of Sutton,13/02/2018,1250972,66.66 , ARGOS RETAIL GROUP,DRAWER CHEST ARGOS - 13.02.2018,Peoples Services Directorate,C.C.A Household Equip & Maint,H214,
http://opendatacommunities.org/id/london-borough-council/sutton,London Borough of Sutton,12/02/2018,1250972,219.12 , WWW.ARGOS.CO.UK,ARGOS DELIVERY,Peoples Services Directorate,C.C.A Household Equip & Maint,H214,
http://opendatacommunities.org/id/london-borough-council/sutton,London Borough of Sutton,12/02/2018,1250972,27.48 , WWW.ARGOS.CO.UK,ARGOS DELIVERY,Peoples Services Directorate,C.C.A Household Equip & Maint,H214,
http://opendatacommunities.org/id/london-borough-council/sutton,London Borough of Sutton,14/02/2018,1250972,90.00 , SANDWELL M.B.C.,BIRTH CERT REGISTRY PAYMENT,Peoples Services Directorate,Personal Requisites,F106,
http://opendatacommunities.org/id/london-borough-council/sutton,London Borough of Sutton,26/01/2018,1250972,20.00 , OYSTER BUS AUTOTOP,OYSTER CARD TOP UP RES EAST,Peoples Services Directorate,Travelling and Subsistence Allowances,A530,
http://opendatacommunities.org/id/london-borough-council/sutton,London Borough of Sutton,20/02/2018,1250972,120.00 , WM MORRISONS,MORRISONS VOUCHERS PURCHASED,Peoples Services Directorate,C.C.A Food & Clothing,H213,
http://opendatacommunities.org/id/london-borough-council/sutton,London Borough of Sutton,20/02/2018,1250972,13.50 , WWW.WIGHTLINK.CO.UK,WIGHTLINK-ETICKET-7889201 - SM - 20.02.2018,Peoples Services Directorate,Travelling and Subsistence Allowances,A530,
http://opendatacommunities.org/id/london-borough-council/sutton,London Borough of Sutton,16/02/2018,1250972,170.00 , COUNTY COUNTY,ADOPTION APPLICATION PURCHASES,Peoples Services Directorate,Personal Requisites,F106,
http://opendatacommunities.org/id/london-borough-council/sutton,London Borough of Sutton,09/02/2018,1250972,20.83 , MARKS&SPENCER PLC,FLOWERS FOR FOSTERCARER,Peoples Services Directorate,Personal Requisites,F106,
http://opendatacommunities.org/id/london-borough-council/sutton,London Borough of Sutton,09/02/2018,1250972,20.83 , MARKS&SPENCER PLC,FLOWERS FOR FOSTERING,Peoples Services Directorate,Personal Requisites,F106,
http://opendatacommunities.org/id/london-borough-council/sutton,London Borough of Sutton,30/01/2018,1250972,99.00 , WWW.CORAM.ORG.UK,TRAINING COURSE,Peoples Services Directorate,Personal Requisites,F106,
http://opendatacommunities.org/id/london-borough-council/sutton,London Borough of Sutton,15/01/2018,1250972,(2.03), WWW.WIGHTLINK.CO.UK,REFUND,Peoples Services Directorate,C.C.A Travel & Subsistance,H212,
http://opendatacommunities.org/id/london-borough-council/sutton,London Borough of Sutton,03/02/2018,1250972,20.00 , OYSTER AUTOTOPUP,OYSTER TOP UP,Peoples Services Directorate,Travelling and Subsistence Allowances,A530,
http://opendatacommunities.org/id/london-borough-council/sutton,London Borough of Sutton,01/02/2018,1250972,20.00 , OYSTER BUS AUTOTOP,OYSTER TOP UP,Peoples Services Directorate,Travelling and Subsistence Allowances,A530,
http://opendatacommunities.org/id/london-borough-council/sutton,London Borough of Sutton,01/02/2018,1250972,20.00 , OYSTER AUTOTOPUP,OYSTER TOP UP,Peoples Services Directorate,Travelling and Subsistence Allowances,A530,
http://opendatacommunities.org/id/london-borough-council/sutton,London Borough of Sutton,21/02/2018,1250972,82.50 , HOLIDAY INNS,HOTEL BOOKING FOR LSCB CHAIR,Peoples Services Directorate,Hospitality (VAT not Recoverable),F325,
http://opendatacommunities.org/id/london-borough-council/sutton,London Borough of Sutton,13/02/2018,1250972,85.62 , AMAZON UK MARKETPLACE,AMAZON SECURE SCREEN,Peoples Services Directorate,General Office Expenses,F235,
http://opendatacommunities.org/id/london-borough-council/sutton,London Borough of Sutton,23/02/2018,1250972,36.55 , JUST EAT,CHILDREN IN CARE COUNCIL MEETING,Peoples Services Directorate,LAC - Education,F269,
http://opendatacommunities.org/id/london-borough-council/sutton,London Borough of Sutton,31/01/2018,1250972,799.90 , linkedin-291 0040336,linkedin,Peoples Services Directorate,Staff Advertising,A500,
http://opendatacommunities.org/id/london-borough-council/sutton,London Borough of Sutton,02/02/2018,1250972,48.70 , TRAINLINE,LONDON TO BROADSTAIRS RETURN LR PEP,Peoples Services Directorate,Staff Travelling Expenses,E130,
http://opendatacommunities.org/id/london-borough-council/sutton,London Borough of Sutton,01/02/2018,1250972,76.70 , TRAINLINE,CARSHALTON TO STOKE ON TRENT RETURN PEP MTG - CH,Peoples Services Directorate,Staff Travelling Expenses,E130,
http://opendatacommunities.org/id/london-borough-council/sutton,London Borough of Sutton,29/01/2018,1250972,28.05 , TRAINLINE,ST PANCREAS TO SITTINGBOURNE RETURN PEP MTG - LR,Peoples Services Directorate,Staff Travelling Expenses,E130,
http://opendatacommunities.org/id/london-borough-council/sutton,London Borough of Sutton,01/02/2018,1250972,143.04 , RED LION,RED LION - EVENT FOR OPPOTUNITY SUTTON,"Environment, Housing & Regeneration Directorate",Community Initiatives,F322,
http://opendatacommunities.org/id/london-borough-council/sutton,London Borough of Sutton,08/02/2018,1250972,119.40 , BARUCH ENTERPRISES,BATTERY CHARGERS FOR P&D MACHINE BATTERIES,"Environment, Housing & Regeneration Directorate",Other Equipment - Purchase,F015,
http://opendatacommunities.org/id/london-borough-council/sutton,London Borough of Sutton,08/02/2018,1250972,40.98 , WWW.DRIVEDEN.CO.UK,PROTECTIVE MATS FOR FLEET VEHICLE,"Environment, Housing & Regeneration Directorate",Other Equipment - Purchase,F015,
http://opendatacommunities.org/id/london-borough-council/sutton,London Borough of Sutton,31/01/2018,1250972,445.00 , HOLIDAY INNS,"HOTEL ACCOMODATION - VISIT TO ASKEW'S PRESTON, 2 DAYS",Peoples Services Directorate,Hotel Accomodation,A512,
http://opendatacommunities.org/id/london-borough-council/sutton,London Borough of Sutton,02/02/2018,1250972,23.67 , NEW SOUTHERN RAILW,LLC MEETING CENTRAL LONDON,Peoples Services Directorate,Travelling and Subsistence Allowances,A530,
http://opendatacommunities.org/id/london-borough-council/sutton,London Borough of Sutton,02/02/2018,1250972,4.08 , LUL TICKET MACHINE,RETURN TRAVEL ASKEW'S PRESTON,Peoples Services Directorate,Travelling and Subsistence Allowances,A530,
http://opendatacommunities.org/id/london-borough-council/sutton,London Borough of Sutton,02/02/2018,1250972,10.62 , STARBUCKS,MEALS - VISIT TO ASKEW'S PRESTON,Peoples Services Directorate,Travelling and Subsistence Allowances,A530,
http://opendatacommunities.org/id/london-borough-council/sutton,London Borough of Sutton,01/02/2018,1250972,43.17 , TURTLE BAY,EVENING MEALS - VISIT TO ASKEW'S PRESTON,Peoples Services Directorate,Travelling and Subsistence Allowances,A530,
http://opendatacommunities.org/id/london-borough-council/sutton,London Borough of Sutton,31/01/2018,1250972,75.00 , EAST2EAST,EVENING MEAL WHILE ON VISIT TO ASKEW'S PRESTON,Peoples Services Directorate,Travelling and Subsistence Allowances,A530,
http://opendatacommunities.org/id/london-borough-council/sutton,London Borough of Sutton,31/01/2018,1250972,16.65 , PRET A MANGER,LUNCH WHILE ON VISIT TO ASKEW'S PRESTON,Peoples Services Directorate,Travelling and Subsistence Allowances,A530,
http://opendatacommunities.org/id/london-borough-council/sutton,London Borough of Sutton,31/01/2018,1250972,19.92 , NEW SOUTHERN RAILW,RETURN RAIL TRAVEL FROM ASKEW'S PRESTON,Peoples Services Directorate,Travelling and Subsistence Allowances,A530,
http://opendatacommunities.org/id/london-borough-council/sutton,London Borough of Sutton,26/01/2018,1250972,3.12 , GOSTO FINO,SUBSISTENCE,Peoples Services Directorate,Travelling and Subsistence Allowances,A530,
http://opendatacommunities.org/id/london-borough-council/sutton,London Borough of Sutton,31/01/2018,1250972,4.17 , NOMAD WEST COAST L,WIFI ACCESS IN ORDER TO WORK - LONDON EUSTON TO PRESTON,Peoples Services Directorate,Purchase of Software,F381,
http://opendatacommunities.org/id/london-borough-council/sutton,London Borough of Sutton,01/02/2018,1250972,4.40 , TNA DISCOVERY ORDERS,DIGITAL IMAGE FOR EXHIBITION FROM NATIONAL ARCHIVES,Peoples Services Directorate,Other Services,F340,
http://opendatacommunities.org/id/london-borough-council/sutton,London Borough of Sutton,06/02/2018,1250972,50.00 , NEW SOUTHERN RAILW,OYSTER TOP UP,"Environment, Housing & Regeneration Directorate",General Office Expenses,F235,
http://opendatacommunities.org/id/london-borough-council/sutton,London Borough of Sutton,26/01/2018,1250972,(10.00), OYSTER RENEW WEB,OYSTERCARD,HRA,General Office Expenses,F235,
http://opendatacommunities.org/id/london-borough-council/sutton,London Borough of Sutton,19/02/2018,1250972,10.00 , OYSTER RENEW WEB,OYSTER TOP UP FOR HOUSING  REGENERATION,HRA,General Office Expenses,F235,
http://opendatacommunities.org/id/london-borough-council/sutton,London Borough of Sutton,19/02/2018,1250972,15.00 , OYSTER RENEW WEB,OYSTERCARD TOP UP FOR HOUSING  REGENERATION,HRA,General Office Expenses,F235,
http://opendatacommunities.org/id/london-borough-council/sutton,London Borough of Sutton,20/02/2018,1250972,220.83 , BRADFORD MET COUNCIL,CONFERENCE FEES FOR THE CHIEF EXECUTIVE,Chief Executive's Directorate,Training - Course Fees,A520,
http://opendatacommunities.org/id/london-borough-council/sutton,London Borough of Sutton,23/02/2018,1250972,7.00 , CLOCK TOWER CARS,TAXI FOR JESS,Chief Executive's Directorate,Training - Travel and Subsistence,A521,
http://opendatacommunities.org/id/london-borough-council/sutton,London Borough of Sutton,01/02/2018,1250972,77.92 , TRAINLINE,RETURN TRAIN TICKET TO BIRMINGHAM FOR THE CHIEF EXECUTIVE TO ATTEND A CONFERENCE,Chief Executive's Directorate,Conferences - Travel and Subsistence,A526,
http://opendatacommunities.org/id/london-borough-council/sutton,London Borough of Sutton,06/02/2018,1250972,8.92 , CLOCK TOWER CARS,TAXI FOR THE CHIEF EXECUTIVE,Chief Executive's Directorate,Travelling and Subsistence Allowances,A530,
http://opendatacommunities.org/id/london-borough-council/sutton,London Borough of Sutton,06/02/2018,1250972,7.67 , CLOCK TOWER CARS,TAXI FOR THE CHIEF EXECUTIVE,Chief Executive's Directorate,Travelling and Subsistence Allowances,A530,
http://opendatacommunities.org/id/london-borough-council/sutton,London Borough of Sutton,26/02/2018,1250972,10.00 , OYSTER RENEW WEB,TEAM OYSTER,Chief Executive's Directorate,Travelling and Subsistence Allowances,A530,
http://opendatacommunities.org/id/london-borough-council/sutton,London Borough of Sutton,26/02/2018,1250972,10.00 , OYSTER RENEW WEB,TEAM OYSTER,Chief Executive's Directorate,Travelling and Subsistence Allowances,A530,
http://opendatacommunities.org/id/london-borough-council/sutton,London Borough of Sutton,25/02/2018,1250972,20.00 , OYSTER AUTOTOPUP,TEAM OYSTER,Chief Executive's Directorate,Travelling and Subsistence Allowances,A530,
http://opendatacommunities.org/id/london-borough-council/sutton,London Borough of Sutton,23/02/2018,1250972,25.00 , OYSTER ISSUE WEB,TEAM OYSTER,Chief Executive's Directorate,Travelling and Subsistence Allowances,A530,
http://opendatacommunities.org/id/london-borough-council/sutton,London Borough of Sutton,23/02/2018,1250972,46.54 , TESCO STORE 3235,SUTTON PLAN REFRESHMENTS,Chief Executive's Directorate,Travelling and Subsistence Allowances,A530,
http://opendatacommunities.org/id/london-borough-council/sutton,London Borough of Sutton,23/02/2018,1250972,20.00 , OYSTER BUS AUTOTOP,TEAM OYSTER,Chief Executive's Directorate,Travelling and Subsistence Allowances,A530,
http://opendatacommunities.org/id/london-borough-council/sutton,London Borough of Sutton,17/02/2018,1250972,20.00 , OYSTER AUTOTOPUP,TEAM OYSTER,Chief Executive's Directorate,Travelling and Subsistence Allowances,A530,
http://opendatacommunities.org/id/london-borough-council/sutton,London Borough of Sutton,15/02/2018,1250972,20.00 , OYSTER AUTOTOPUP,TEAM OYSTER,Chief Executive's Directorate,Travelling and Subsistence Allowances,A530,
http://opendatacommunities.org/id/london-borough-council/sutton,London Borough of Sutton,03/02/2018,1250972,20.00 , OYSTER AUTOTOPUP,TEAM OYSTER CARD,Chief Executive's Directorate,Travelling and Subsistence Allowances,A530,
http://opendatacommunities.org/id/london-borough-council/sutton,London Borough of Sutton,23/02/2018,1250972,20.00 , OYSTER AUTOTOPUP,SUTTON PLAN REFRESHMENTS,Chief Executive's Directorate,General Office Expenses,F235,
http://opendatacommunities.org/id/london-borough-council/sutton,London Borough of Sutton,22/02/2018,1251863,200.00 , paypal  l. a. of it,web design training course,Chief Executive's Directorate,General Office Expenses,F235,
http://opendatacommunities.org/id/london-borough-council/sutton,London Borough of Sutton,12/02/2018,1251863,5.99 , MAILCHIMP,WEB HOSTING FEE,Chief Executive's Directorate,Fees - Computer Software,F384,
http://opendatacommunities.org/id/london-borough-council/sutton,London Borough of Sutton,11/02/2018,1251863,217.69 , MAILCHIMP    MONTHLY,WEB HOSTING,Chief Executive's Directorate,Fees - Computer Software,F384,
http://opendatacommunities.org/id/london-borough-council/sutton,London Borough of Sutton,08/02/2018,1250972,0.40 ,,EXCHANGE RATE FOR WREALLY ANNUAL TRANSCRIPTION SERVICE DOLLARS TO GBP,Resources Directorate,Fees - Computer Software,F384,
http://opendatacommunities.org/id/london-borough-council/sutton,London Borough of Sutton,07/02/2018,1250972,14.45 , TRANSCRIBE,WREALLY ANNUAL TRANSCRIPTION SERVICE,Resources Directorate,Fees - Computer Software,F384,
http://opendatacommunities.org/id/london-borough-council/sutton,London Borough of Sutton,02/02/2018,1250972,833.33 , HOLIDAY INNS,MAYOR'S RECEPTION AT THE HOLIDAY INN,Resources Directorate,General Office Expenses,F235,
http://opendatacommunities.org/id/london-borough-council/sutton,London Borough of Sutton,21/02/2018,1250972,10.00 , J LEON & CO,OYSTER,Resources Directorate,Members Expenses - Travel and Subsistence,F401,
http://opendatacommunities.org/id/london-borough-council/sutton,London Borough of Sutton,23/02/2018,1250972,5.00 , OYSTER RENEW WEB,TOP UP - UNABLE TO LOAD RECEIPT BUT CAN PROVIDE SEPARATELY,Resources Directorate,Members Expenses - Travel and Subsistence,F401,
http://opendatacommunities.org/id/london-borough-council/sutton,London Borough of Sutton,23/02/2018,1250972,20.00 , OYSTER RENEW WEB,OYSTER TOP UP,Resources Directorate,Members Expenses - Travel and Subsistence,F401,
http://opendatacommunities.org/id/london-borough-council/sutton,London Borough of Sutton,21/02/2018,1250972,30.00 , NEW SOUTHERN RAILW,OYSTER TOP UP,"Environment, Housing & Regeneration Directorate",Training - Travel and Subsistence,A521,
http://opendatacommunities.org/id/london-borough-council/sutton,London Borough of Sutton,02/02/2018,1250972,82.11 , WWW.SAFETYGLOVES.CO.UK,POLYCO ELECTRICIANS INSULATING LATEX GLOVES X3,"Environment, Housing & Regeneration Directorate",Health and Safety Equipment,F005,
http://opendatacommunities.org/id/london-borough-council/sutton,London Borough of Sutton,31/01/2018,1250972,38.50 , TURPIN4401767604800,DOG BITES - BOOK FOR LEAD INITIATIVE,"Environment, Housing & Regeneration Directorate",Books,F006,
http://opendatacommunities.org/id/london-borough-council/sutton,London Borough of Sutton,22/02/2018,1250972,82.00 , THE BCI FORUM R/T,BCI SUBSCRIPTION,"Environment, Housing & Regeneration Directorate",Subscriptions - General,F450,
http://opendatacommunities.org/id/london-borough-council/sutton,London Borough of Sutton,06/02/2018,1250972,170.00 , CHARTERED MANAGEME,CMI SUBSCRIPTION,"Environment, Housing & Regeneration Directorate",Subscriptions - General,F450,
http://opendatacommunities.org/id/london-borough-council/sutton,London Borough of Sutton,17/02/2018,1250972,16.67 , OYSTER AUTOTOPUP,OYSTER TOP UP,Resources Directorate,Travelling and Subsistence Allowances,A530,
http://opendatacommunities.org/id/london-borough-council/sutton,London Borough of Sutton,04/02/2018,1250972,16.67 , OYSTER AUTOTOPUP,OYSTER TOP UP,Resources Directorate,Travelling and Subsistence Allowances,A530,
http://opendatacommunities.org/id/london-borough-council/sutton,London Borough of Sutton,30/01/2018,1250972,15.51 , THE BAG N BOX MAN,ROLL OF BROWN PAPER FOR DWP WORKSHOP,Resources Directorate,Stationery,F220,
http://opendatacommunities.org/id/london-borough-council/sutton,London Borough of Sutton,06/02/2018,1250972,333.32 , WWW.ARGOS.CO.UK,PURCHASE OF FRIDGE FREEZER AND ELECTRIC COOKER FOR CRISIS LOAN,Resources Directorate,Grants,F473,
http://opendatacommunities.org/id/london-borough-council/sutton,London Borough of Sutton,02/02/2018,1250972,114.12 , WWW.ARGOS.CO.UK,PURCHASE OF SINGLE DIVAN FOR CRISIS GRANT,Resources Directorate,Grants,F473,
http://opendatacommunities.org/id/london-borough-council/sutton,London Borough of Sutton,19/02/2018,1251863,169.99 , WWW.ARGOS.CO.UK,CRISIS LOANS & GRANTS,Resources Directorate,Grants,F473,
http://opendatacommunities.org/id/london-borough-council/sutton,London Borough of Sutton,14/02/2018,1251863,277.98 , WWW.ARGOS.CO.UK,CRISIS LOANS & GRANTS,Resources Directorate,Grants,F473,
http://opendatacommunities.org/id/london-borough-council/sutton,London Borough of Sutton,17/02/2018,1250972,33.33 , OYSTER AUTOTOPUP,REVENUES STAFF TRAVEL,Resources Directorate,Travelling and Subsistence Allowances,A530,
http://opendatacommunities.org/id/london-borough-council/sutton,London Borough of Sutton,15/02/2018,1250972,33.33 , OYSTER BUS AUTOTOP,REVENUES STAFF TRAVEL,Resources Directorate,Travelling and Subsistence Allowances,A530,
http://opendatacommunities.org/id/london-borough-council/sutton,London Borough of Sutton,13/02/2018,1250972,20.00 , WWW.GOV.UK,2 X PROBATE SEARCHES,Resources Directorate,General Office Expenses,F235,
http://opendatacommunities.org/id/london-borough-council/sutton,London Borough of Sutton,31/01/2018,1250972,8.33 , WWW.GOV.UK,PROBATE CERT PURCHASE,Resources Directorate,General Office Expenses,F235,
http://opendatacommunities.org/id/london-borough-council/sutton,London Borough of Sutton,15/02/2018,1250972,33.33 , OYSTER AUTOTOPUP,BENEFIT STAFF TRAVEL,Resources Directorate,Travelling and Subsistence Allowances,A530,
http://opendatacommunities.org/id/london-borough-council/sutton,London Borough of Sutton,14/02/2018,1250972,33.33 , OYSTER AUTOTOPUP,BENEFIT STAFF TRAVEL,Resources Directorate,Travelling and Subsistence Allowances,A530,
http://opendatacommunities.org/id/london-borough-council/sutton,London Borough of Sutton,04/02/2018,1250972,33.33 , OYSTER AUTOTOPUP,BENEFITS STAFF TRAVEL,Resources Directorate,Travelling and Subsistence Allowances,A530,
http://opendatacommunities.org/id/london-borough-council/sutton,London Borough of Sutton,12/02/2018,1250972,257.49 , CHILD POVERTY,PURCHASE OF 2017-2018 CPAG LEGISLATION BOOK,Resources Directorate,Subscriptions - General,F450,
http://opendatacommunities.org/id/london-borough-council/sutton,London Borough of Sutton,31/01/2018,1251863,222.00 , WWW.CII.CO.UK,EXAM/STUDY FEES,Resources Directorate,Training - Course Fees,A520,
http://opendatacommunities.org/id/london-borough-council/sutton,London Borough of Sutton,31/01/2018,1251863,4.00 , WWW.MIB.ORG.UK,TRAINING/COURSE FEES,Resources Directorate,Training - Course Fees,A520,
http://opendatacommunities.org/id/london-borough-council/sutton,London Borough of Sutton,31/01/2018,1251863,222.00 , WWW.CII.CO.UK,EXAM/COURSE FEES,Resources Directorate,Training - Course Fees,A520,
http://opendatacommunities.org/id/london-borough-council/sutton,London Borough of Sutton,15/02/2018,1250972,264.15 , TRAINLINE,TRAIN FARES - MANCHESTER RETURN FOR CONFERENCE,Resources Directorate,Travelling and Subsistence Allowances,A530,
http://opendatacommunities.org/id/london-borough-council/sutton,London Borough of Sutton,02/02/2018,1250972,757.71 , TRAVELODGE,TEMP ACCOMMODATION MR F,Peoples Services Directorate,Accommodation - Bed and Breakfast,H202,
http://opendatacommunities.org/id/london-borough-council/sutton,London Borough of Sutton,01/02/2018,1250972,20.00 , OYSTER BUS AUTOTOP,OYSTER TOP UP,Peoples Services Directorate,Travelling and Subsistence Allowances,A530,
http://opendatacommunities.org/id/london-borough-council/sutton,London Borough of Sutton,02/02/2018,1250972,46.67 , WANNA LTD,56.00 - F150 6424 9999 -PACKING BOXES - BOXES FOR COMMUNITY SOCIAL WORK.PD,Peoples Services Directorate,Provisions - General,F150,
http://opendatacommunities.org/id/london-borough-council/sutton,London Borough of Sutton,16/02/2018,1250972,738.75 , TRAVELODGE,,Peoples Services Directorate,Accommodation - Supported Living,H201,
http://opendatacommunities.org/id/london-borough-council/sutton,London Borough of Sutton,20/02/2018,1250972,120.00 , WM MORRISONS,MORRISONS VOUCHERS PURCHASED FOR SUBSISTANCE,Peoples Services Directorate,C.C.A Food & Clothing,H213,
http://opendatacommunities.org/id/london-borough-council/sutton,London Borough of Sutton,20/02/2018,1250972,120.00 , WM MORRISONS,MORRISONS VOUCHERS PURCHASED,Peoples Services Directorate,C.C.A Food & Clothing,H213,
http://opendatacommunities.org/id/london-borough-council/sutton,London Borough of Sutton,12/02/2018,1250972,465.82 , JOHN LEWIS,JOHN LEWIS ITEMS FOR LOC A,Peoples Services Directorate,Personal Requisites,F106,
http://opendatacommunities.org/id/london-borough-council/sutton,London Borough of Sutton,22/02/2018,1250972,107.96 , B & Q 1191,REST CENTRE BOXES AND PADLOCKS,Peoples Services Directorate,General Office Expenses,F235,
